[Event "*** Titled Tuesday Blitz"]
[Site "Chess.com"]
[Date "2020.11.24"]
[Round "2"]
[White "inegrepus"]
[Black "Jungle_Jaguar"]
[Result "1/2-1/2"]
[WhiteElo "2231"]
[BlackElo "2599"]
[TimeControl "180+1"]
[EndTime "10:35:27 PST"]
[Termination "Game drawn by agreement"]

1. Nf3 {[%clk 0:02:57.7]} 1... Nf6 {[%clk 0:02:59]} 2. c4 {[%clk 0:02:57.6]}
2... g6 {[%clk 0:02:59]} 3. Nc3 {[%clk 0:02:57.6]} 3... Bg7 {[%clk 0:02:59.3]}
4. e4 {[%clk 0:02:57.9]} 4... d6 {[%clk 0:02:59.7]} 5. d4 {[%clk 0:02:57.9]}
5... O-O {[%clk 0:02:58.4]} 6. Be2 {[%clk 0:02:57.6]} 6... e5 {[%clk 0:02:57.8]}
7. dxe5 {[%clk 0:02:57.6]} 7... dxe5 {[%clk 0:02:58.7]} 8. Qxd8 {[%clk
0:02:58.2]} 8... Rxd8 {[%clk 0:02:59.2]} 9. Bg5 {[%clk 0:02:58.8]} 9... Re8
{[%clk 0:02:56.1]} 10. O-O-O {[%clk 0:02:58.8]} 10... Nc6 {[%clk 0:02:43.5]} 11.
Nd5 {[%clk 0:02:56.9]} 11... Nxd5 {[%clk 0:02:40.9]} 12. cxd5 {[%clk 0:02:57.8]}
12... Nd4 {[%clk 0:02:35.1]} 13. Nxd4 {[%clk 0:02:43.9]} 13... exd4 {[%clk
0:02:36]} 14. Bf3 {[%clk 0:02:44.2]} 14... Bd7 {[%clk 0:02:27.3]} 15. Kb1 {[%clk
0:02:43.2]} 15... c5 {[%clk 0:02:12.2]} 16. dxc6 {[%clk 0:02:41.4]} 16... bxc6
{[%clk 0:02:11.8]} 17. Rc1 {[%clk 0:02:39.3]} 17... Rab8 {[%clk 0:02:07.8]} 18.
Bf4 {[%clk 0:02:39]} 18... Rb5 {[%clk 0:02:05.8]} 19. e5 {[%clk 0:02:32.9]}
19... Bxe5 {[%clk 0:01:35.7]} 20. Bxe5 {[%clk 0:02:31]} 20... Rexe5 {[%clk
0:01:14.6]} 21. Bxc6 {[%clk 0:02:30.6]} 21... Bxc6 {[%clk 0:01:14.2]} 22. Rxc6
{[%clk 0:02:31.5]} 22... d3 {[%clk 0:01:14]} 23. Rd1 {[%clk 0:02:22.9]} 23...
Re2 {[%clk 0:01:13]} 24. b3 {[%clk 0:02:19.7]} 24... Ra5 {[%clk 0:01:05.8]} 25.
a4 {[%clk 0:02:14.8]} 25... Rd5 {[%clk 0:01:05.9]} 26. Rc3 {[%clk 0:02:09.7]}
26... d2 {[%clk 0:01:05]} 27. Rf3 {[%clk 0:01:56.1]} 27... h5 {[%clk 0:01:02.5]}
28. Kc2 {[%clk 0:01:52.8]} 28... Kg7 {[%clk 0:00:58.3]} 29. b4 {[%clk
0:01:47.7]} 29... Rd4 {[%clk 0:00:50.8]} 30. b5 {[%clk 0:01:42]} 30... f5 {[%clk
0:00:33.4]} 31. a5 {[%clk 0:01:30]} 31... Ra4 {[%clk 0:00:24.9]} 32. b6 {[%clk
0:01:18.1]} 32... Rxa5 {[%clk 0:00:22.4]} 33. bxa7 {[%clk 0:01:17.9]} 33... Rxa7
{[%clk 0:00:20.8]} 34. Kd3 {[%clk 0:01:16.6]} 34... Re6 {[%clk 0:00:10.1]} 35.
Rxd2 {[%clk 0:01:11.4]} 35... Ra3+ {[%clk 0:00:08.1]} 36. Kc2 {[%clk 0:01:10.4]}
36... Rxf3 {[%clk 0:00:06.5]} 37. gxf3 {[%clk 0:01:10.2]} 37... Kf6 {[%clk
0:00:06.2]} 38. Kd1 {[%clk 0:01:08.8]} 38... Kg5 {[%clk 0:00:05.7]} 39. Rd4
{[%clk 0:01:07.7]} 39... Ra6 {[%clk 0:00:06.1]} 40. Ke2 {[%clk 0:01:07.5]} 40...
Ra2+ {[%clk 0:00:06]} 41. Kf1 {[%clk 0:01:07.5]} 41... h4 {[%clk 0:00:06.7]} 42.
h3 {[%clk 0:01:04.1]} 42... Rb2 {[%clk 0:00:06.7]} 43. Kg2 {[%clk 0:01:04.3]}
43... Ra2 {[%clk 0:00:06.7]} 44. Rc4 {[%clk 0:01:03.3]} 44... Kh5 {[%clk
0:00:07]} 45. Rb4 {[%clk 0:00:59.5]} 45... Rc2 {[%clk 0:00:07]} 46. Rd4 {[%clk
0:00:59.3]} 46... g5 {[%clk 0:00:07.3]} 47. Ra4 {[%clk 0:00:58.6]} 47... Kg6
{[%clk 0:00:06.6]} 48. Ra6+ {[%clk 0:00:58.2]} 48... Kf7 {[%clk 0:00:05.8]} 49.
Rb6 {[%clk 0:00:57.2]} 49... Rd2 {[%clk 0:00:05.5]} 50. Ra6 {[%clk 0:00:57.2]}
50... Re2 {[%clk 0:00:05.2]} 51. Rd6 {[%clk 0:00:56.9]} 51... Re6 {[%clk
0:00:05.6]} 52. Rd7+ {[%clk 0:00:55.3]} 52... Kf6 {[%clk 0:00:06.5]} 53. Rd5
{[%clk 0:00:55]} 53... Ra6 {[%clk 0:00:06.7]} 54. Rd4 {[%clk 0:00:54.9]} 54...
Ke5 {[%clk 0:00:06.6]} 55. Rb4 {[%clk 0:00:54.7]} 55... Ra5 {[%clk 0:00:07]} 56.
Rc4 {[%clk 0:00:54.1]} 56... Kd5 {[%clk 0:00:06.6]} 57. Rb4 {[%clk 0:00:54.3]}
57... Kd6 {[%clk 0:00:06.6]} 58. Rd4+ {[%clk 0:00:54.2]} 58... Ke5 {[%clk
0:00:06.9]} 59. Rb4 {[%clk 0:00:54.2]} 59... Kd5 {[%clk 0:00:07.3]} 60. Rb8
{[%clk 0:00:52]} 60... Ke5 {[%clk 0:00:07]} 61. Rb4 {[%clk 0:00:49.2]} 61... Rc5
{[%clk 0:00:05.9]} 62. Ra4 {[%clk 0:00:49.2]} 62... Kf6 {[%clk 0:00:06.1]} 63.
Rb4 {[%clk 0:00:49.1]} 63... Kg6 {[%clk 0:00:06]} 64. Rd4 {[%clk 0:00:48.9]}
64... Rc2 {[%clk 0:00:05.3]} 65. Rd6+ {[%clk 0:00:48.9]} 65... Kf7 {[%clk
0:00:05.6]} 66. Ra6 {[%clk 0:00:48.5]} 66... Re2 {[%clk 0:00:05.4]} 67. Rb6
{[%clk 0:00:48.1]} 67... Re6 {[%clk 0:00:05.7]} 68. Rb5 {[%clk 0:00:48]} 68...
Kf6 {[%clk 0:00:06.1]} 69. Ra5 {[%clk 0:00:47.8]} 69... Re5 {[%clk 0:00:06.1]}
70. Ra4 {[%clk 0:00:47.8]} 70... Rd5 {[%clk 0:00:05.9]} 71. Rb4 {[%clk
0:00:47.4]} 71... Ke5 {[%clk 0:00:06.4]} 72. Ra4 {[%clk 0:00:47.4]} 72... Rd4
{[%clk 0:00:06.8]} 73. Ra7 {[%clk 0:00:44.3]} 73... Kf4 {[%clk 0:00:06.9]} 74.
Ra3 {[%clk 0:00:43.9]} 74... Rb4 {[%clk 0:00:06.9]} 75. Rc3 {[%clk 0:00:43.9]}
75... g4 {[%clk 0:00:07]} 76. fxg4 {[%clk 0:00:43.8]} 76... fxg4 {[%clk
0:00:07.6]} 77. hxg4 {[%clk 0:00:42.7]} 77... Kxg4 {[%clk 0:00:08.5]} 78. f3+
{[%clk 0:00:41.8]} 78... Kf4 {[%clk 0:00:08.2]} 79. Rc8 {[%clk 0:00:38.1]} 79...
Rb2+ {[%clk 0:00:07.8]} 80. Kh3 {[%clk 0:00:37.5]} 80... Rb1 {[%clk 0:00:06.9]}
81. Rc4+ {[%clk 0:00:35.1]} 81... Kxf3 {[%clk 0:00:06.1]} 82. Kxh4 {[%clk
0:00:35.2]} 82... Rb5 {[%clk 0:00:05.4]} 83. Ra4 {[%clk 0:00:34.1]} 83... Rd5
{[%clk 0:00:05.3]} 84. Rb4 {[%clk 0:00:34]} 84... Ke3 {[%clk 0:00:05.6]} 85. Ra4
{[%clk 0:00:34.1]} 1/2-1/2

[Event "*** Titled Tuesday Blitz"]
[Site "Chess.com"]
[Date "2020.11.24"]
[Round "2"]
[White "sbouchet"]
[Black "PLAYER_2006_M"]
[Result "1-0"]
[WhiteElo "2312"]
[BlackElo "2497"]
[TimeControl "180+1"]
[EndTime "10:35:30 PST"]
[Termination "sbouchet won by resignation"]

1. e4 {[%clk 0:03:00.9]} 1... e5 {[%clk 0:02:59.6]} 2. Nc3 {[%clk 0:02:57.5]}
2... Nf6 {[%clk 0:02:58.8]} 3. Nf3 {[%clk 0:02:54.1]} 3... Nc6 {[%clk
0:02:57.7]} 4. d4 {[%clk 0:02:51.1]} 4... exd4 {[%clk 0:02:56.6]} 5. Nxd4 {[%clk
0:02:52]} 5... Bb4 {[%clk 0:02:57.2]} 6. Nxc6 {[%clk 0:02:49.8]} 6... bxc6
{[%clk 0:02:58.1]} 7. Bd3 {[%clk 0:02:49.8]} 7... d5 {[%clk 0:02:57.4]} 8. exd5
{[%clk 0:02:48.8]} 8... O-O {[%clk 0:02:57.3]} 9. O-O {[%clk 0:02:48.4]} 9...
cxd5 {[%clk 0:02:57.8]} 10. Bg5 {[%clk 0:02:45.2]} 10... c6 {[%clk 0:02:55.9]}
11. Na4 {[%clk 0:02:43.4]} 11... h6 {[%clk 0:02:53.7]} 12. Bh4 {[%clk
0:02:41.9]} 12... Rb8 {[%clk 0:02:52.7]} 13. c3 {[%clk 0:02:41]} 13... Bd6
{[%clk 0:02:51.9]} 14. b4 {[%clk 0:02:35.7]} 14... Re8 {[%clk 0:02:40.6]} 15.
Bg3 {[%clk 0:02:08]} 15... Bxg3 {[%clk 0:02:13.4]} 16. hxg3 {[%clk 0:02:08.9]}
16... Qd6 {[%clk 0:02:11.7]} 17. Nc5 {[%clk 0:02:01.8]} 17... Nd7 {[%clk
0:02:10.8]} 18. Nxd7 {[%clk 0:01:58]} 18... Bxd7 {[%clk 0:02:11.7]} 19. Bc2
{[%clk 0:01:52]} 19... c5 {[%clk 0:01:56]} 20. a3 {[%clk 0:01:50.9]} 20... Bb5
{[%clk 0:01:52.9]} 21. Re1 {[%clk 0:01:48.1]} 21... Rxe1+ {[%clk 0:01:47.6]} 22.
Qxe1 {[%clk 0:01:49]} 22... d4 {[%clk 0:01:48]} 23. bxc5 {[%clk 0:01:38.9]}
23... Qxc5 {[%clk 0:01:47.9]} 24. Qe4 {[%clk 0:01:39.5]} 24... Qxc3 {[%clk
0:00:24.6]} 25. Qh7+ {[%clk 0:01:22.8]} 25... Kf8 {[%clk 0:00:24.4]} 26. Rd1
{[%clk 0:01:13.8]} 26... Rc8 {[%clk 0:00:20.6]} 27. Bf5 {[%clk 0:01:09.1]} 27...
Rc5 {[%clk 0:00:19.7]} 28. g4 {[%clk 0:01:03.8]} 28... d3 {[%clk 0:00:14.9]} 29.
Qh8+ {[%clk 0:00:58.3]} 29... Ke7 {[%clk 0:00:14.7]} 30. Qb8 {[%clk 0:00:56.8]}
30... g6 {[%clk 0:00:13]} 31. Qxa7+ {[%clk 0:00:56]} 31... Kf6 {[%clk
0:00:12.9]} 32. Be4 {[%clk 0:00:51.5]} 32... d2 {[%clk 0:00:13.3]} 33. Rxd2
{[%clk 0:00:43.7]} 33... Qc1+ {[%clk 0:00:13.3]} 34. Kh2 {[%clk 0:00:43]} 34...
Re5 {[%clk 0:00:10.9]} 35. Rd6+ {[%clk 0:00:41]} 35... Kg7 {[%clk 0:00:10.6]}
36. Rxg6+ {[%clk 0:00:41.1]} 36... Kf8 {[%clk 0:00:10.5]} 37. Qb8+ {[%clk
0:00:32.6]} 37... Re8 {[%clk 0:00:10]} 38. Qd6+ {[%clk 0:00:32.5]} 38... Re7
{[%clk 0:00:10.2]} 39. Rxh6 {[%clk 0:00:18.3]} 39... Qc7 {[%clk 0:00:08.3]} 40.
Qxc7 {[%clk 0:00:17.7]} 40... Rxc7 {[%clk 0:00:09.2]} 41. Rb6 {[%clk 0:00:16.3]}
41... Be2 {[%clk 0:00:08.7]} 42. f3 {[%clk 0:00:16.1]} 42... Rc3 {[%clk
0:00:08.9]} 43. a4 {[%clk 0:00:15.6]} 43... Ra3 {[%clk 0:00:09.2]} 44. Rb4
{[%clk 0:00:15.2]} 44... Ra2 {[%clk 0:00:08.9]} 45. Kg3 {[%clk 0:00:15.1]} 45...
Bf1 {[%clk 0:00:08.9]} 46. f4 {[%clk 0:00:13.9]} 46... Ra3+ {[%clk 0:00:08.2]}
47. Bf3 {[%clk 0:00:13.1]} 47... Ra2 {[%clk 0:00:08.2]} 48. g5 {[%clk
0:00:12.7]} 48... Kg7 {[%clk 0:00:08.5]} 49. f5 {[%clk 0:00:13]} 49... Bd3
{[%clk 0:00:07.7]} 50. Kf4 {[%clk 0:00:12.6]} 50... Bc2 {[%clk 0:00:07.7]} 51.
Bc6 {[%clk 0:00:08.6]} 51... Ra3 {[%clk 0:00:05.3]} 52. g4 {[%clk 0:00:07.7]}
52... Ra1 {[%clk 0:00:04.9]} 53. Rb7 {[%clk 0:00:07.2]} 53... Rf1+ {[%clk
0:00:04.5]} 54. Ke5 {[%clk 0:00:06.8]} 54... Re1+ {[%clk 0:00:04.8]} 55. Kd4
{[%clk 0:00:06]} 55... Rd1+ {[%clk 0:00:05]} 56. Kc3 {[%clk 0:00:05.2]} 56...
Bb1 {[%clk 0:00:04.5]} 57. g6 {[%clk 0:00:03.6]} 57... Ba2 {[%clk 0:00:03.7]}
58. gxf7 {[%clk 0:00:02.5]} 58... Rc1+ {[%clk 0:00:01.7]} 59. Kb2 {[%clk
0:00:01.8]} 59... Rxc6 {[%clk 0:00:01.8]} 60. Kxa2 {[%clk 0:00:02.1]} 60... Rc4
{[%clk 0:00:02.7]} 61. Kb3 {[%clk 0:00:02.2]} 61... Rf4 {[%clk 0:00:03.6]} 62.
a5 {[%clk 0:00:02.3]} 62... Rxg4 {[%clk 0:00:04.5]} 63. a6 {[%clk 0:00:02.4]}
63... Rg3+ {[%clk 0:00:05.1]} 64. Kb4 {[%clk 0:00:02]} 64... Rg4+ {[%clk
0:00:05.7]} 65. Kb5 {[%clk 0:00:02.3]} 65... Rg1 {[%clk 0:00:05.5]} 66. a7
{[%clk 0:00:02.4]} 66... Rb1+ {[%clk 0:00:06.1]} 67. Kc6 {[%clk 0:00:01.4]}
67... Rc1+ {[%clk 0:00:06.1]} 68. Kb6 {[%clk 0:00:01.6]} 68... Rb1+ {[%clk
0:00:05.8]} 69. Kc7 {[%clk 0:00:02.2]} 69... Ra1 {[%clk 0:00:05.9]} 70. Kb8
{[%clk 0:00:02.9]} 70... Kf8 {[%clk 0:00:05.6]} 71. a8=Q {[%clk 0:00:03.5]}
71... Rxa8+ {[%clk 0:00:05.4]} 72. Kxa8 {[%clk 0:00:04.4]} 72... Kg7 {[%clk
0:00:06.3]} 73. Kb8 {[%clk 0:00:04.5]} 73... Kf8 {[%clk 0:00:07.2]} 74. Kc7
{[%clk 0:00:05.4]} 74... Kg7 {[%clk 0:00:08]} 75. Kd6 {[%clk 0:00:06.3]} 75...
Kf8 {[%clk 0:00:08.9]} 76. Ke5 {[%clk 0:00:07]} 76... Kg7 {[%clk 0:00:09.8]} 77.
f6+ {[%clk 0:00:07.4]} 77... Kf8 {[%clk 0:00:10.7]} 78. Rb8+ {[%clk 0:00:07.7]}
78... Kxf7 {[%clk 0:00:11.3]} 79. Rb7+ {[%clk 0:00:08.6]} 79... Kf8 {[%clk
0:00:12.1]} 80. Ke6 {[%clk 0:00:09.3]} 80... Kg8 {[%clk 0:00:12.2]} 81. f7+
{[%clk 0:00:09.6]} 81... Kg7 {[%clk 0:00:13.1]} 82. Ke7 {[%clk 0:00:10.3]} 82...
Kg6 {[%clk 0:00:13.1]} 83. f8=Q {[%clk 0:00:10.8]} 83... Kh5 {[%clk 0:00:14]}
84. Qg7 {[%clk 0:00:09.2]} 84... Kh4 {[%clk 0:00:13.4]} 85. Rb8 {[%clk
0:00:10.1]} 1-0

[Event "*** Titled Tuesday Blitz"]
[Site "Chess.com"]
[Date "2020.11.24"]
[Round "2"]
[White "ShapkinAnatoliy"]
[Black "serhanberat_ozdemir"]
[Result "1-0"]
[WhiteElo "2650"]
[BlackElo "2347"]
[TimeControl "180+1"]
[EndTime "10:35:44 PST"]
[Termination "ShapkinAnatoliy won on time"]

1. d4 {[%clk 0:03:00.9]} 1... Nf6 {[%clk 0:02:59.8]} 2. c4 {[%clk 0:03:01.4]}
2... g6 {[%clk 0:03:00.3]} 3. Nc3 {[%clk 0:03:00.9]} 3... Bg7 {[%clk 0:03:00.9]}
4. e4 {[%clk 0:03:01]} 4... d6 {[%clk 0:03:00.8]} 5. Nf3 {[%clk 0:03:01.6]} 5...
O-O {[%clk 0:03:01.3]} 6. Be2 {[%clk 0:03:02]} 6... Bg4 {[%clk 0:03:01.6]} 7.
Be3 {[%clk 0:03:01]} 7... Nfd7 {[%clk 0:03:01.7]} 8. O-O {[%clk 0:03:00.6]} 8...
c5 {[%clk 0:03:01.8]} 9. d5 {[%clk 0:02:59.8]} 9... Na6 {[%clk 0:03:02.1]} 10.
Qd2 {[%clk 0:02:56.8]} 10... Nc7 {[%clk 0:03:00.6]} 11. a4 {[%clk 0:02:55.5]}
11... Re8 {[%clk 0:02:46.2]} 12. Rfe1 {[%clk 0:02:51]} 12... e6 {[%clk
0:02:40.7]} 13. dxe6 {[%clk 0:02:38.2]} 13... Nxe6 {[%clk 0:02:41.6]} 14. Qxd6
{[%clk 0:02:31.9]} 14... Bxf3 {[%clk 0:02:35.7]} 15. Bxf3 {[%clk 0:02:31.4]}
15... Ne5 {[%clk 0:02:35.9]} 16. Qxd8 {[%clk 0:02:12.8]} 16... Raxd8 {[%clk
0:02:36.8]} 17. Be2 {[%clk 0:01:47.3]} 17... Nd4 {[%clk 0:02:36.9]} 18. Rac1
{[%clk 0:01:33.4]} 18... Nxe2+ {[%clk 0:02:31.4]} 19. Rxe2 {[%clk 0:01:32.7]}
19... Nxc4 {[%clk 0:02:29]} 20. Bxc5 {[%clk 0:01:26.6]} 20... b6 {[%clk
0:02:15.1]} 21. Be3 {[%clk 0:01:04.3]} 21... Bxc3 {[%clk 0:02:06.8]} 22. bxc3
{[%clk 0:00:47.8]} 22... Rxe4 {[%clk 0:02:07.3]} 23. a5 {[%clk 0:00:43.1]} 23...
bxa5 {[%clk 0:01:52.7]} 24. Kf1 {[%clk 0:00:40.1]} 24... a4 {[%clk 0:01:48.3]}
25. Bd4 {[%clk 0:00:27.9]} 25... Rxe2 {[%clk 0:01:46.4]} 26. Kxe2 {[%clk
0:00:28.8]} 26... Rb8 {[%clk 0:01:04.4]} 27. Kd3 {[%clk 0:00:25.5]} 27... Nb2+
{[%clk 0:00:49.8]} 28. Kc2 {[%clk 0:00:22.4]} 28... Nc4 {[%clk 0:00:44.7]} 29.
Kd3 {[%clk 0:00:22.9]} 29... Nb2+ {[%clk 0:00:38.7]} 30. Kc2 {[%clk 0:00:22.9]}
30... Nc4 {[%clk 0:00:20.3]} 31. Ra1 {[%clk 0:00:22.9]} 31... a3 {[%clk
0:00:18]} 32. Kd3 {[%clk 0:00:23]} 32... Nb2+ {[%clk 0:00:18.2]} 33. Ke4 {[%clk
0:00:21.1]} 33... Nc4 {[%clk 0:00:16.2]} 34. Kd5 {[%clk 0:00:21.3]} 34... Rc8
{[%clk 0:00:13.8]} 35. Bc5 {[%clk 0:00:19]} 35... Nb6+ {[%clk 0:00:08.6]} 36.
Bxb6 {[%clk 0:00:18.7]} 36... axb6 {[%clk 0:00:09.5]} 37. Rxa3 {[%clk
0:00:19.4]} 37... Rc5+ {[%clk 0:00:09.3]} 38. Kd4 {[%clk 0:00:17.3]} 38... Kg7
{[%clk 0:00:09.3]} 39. Ra7 {[%clk 0:00:17.7]} 39... Rc6 {[%clk 0:00:09.4]} 40.
Rb7 {[%clk 0:00:18.1]} 40... h5 {[%clk 0:00:07.3]} 41. h4 {[%clk 0:00:18]} 41...
Rc5 {[%clk 0:00:06.4]} 42. Rxb6 {[%clk 0:00:15.9]} 42... Rf5 {[%clk 0:00:06.8]}
43. Ke3 {[%clk 0:00:15.4]} 43... Rc5 {[%clk 0:00:06.1]} 44. Kd3 {[%clk
0:00:15.4]} 44... Rf5 {[%clk 0:00:06.5]} 45. f3 {[%clk 0:00:16]} 45... Rf4
{[%clk 0:00:06.6]} 46. Rb4 {[%clk 0:00:16.6]} 46... Rf5 {[%clk 0:00:06]} 47. Rd4
{[%clk 0:00:16.9]} 47... Rc5 {[%clk 0:00:05.8]} 48. c4 {[%clk 0:00:17.4]} 48...
Kf6 {[%clk 0:00:06.3]} 49. Rd5 {[%clk 0:00:16.8]} 49... Rc8 {[%clk 0:00:06.5]}
50. Kd4 {[%clk 0:00:17.2]} 50... Ra8 {[%clk 0:00:06.4]} 51. c5 {[%clk
0:00:14.4]} 51... Ra4+ {[%clk 0:00:06.7]} 52. Kd3 {[%clk 0:00:11.7]} 52... Ra3+
{[%clk 0:00:04.3]} 53. Ke4 {[%clk 0:00:11.2]} 53... Ra4+ {[%clk 0:00:04.3]} 54.
Rd4 {[%clk 0:00:11.1]} 54... Ra5 {[%clk 0:00:04.4]} 55. Rc4 {[%clk 0:00:11.3]}
55... Ra7 {[%clk 0:00:05]} 56. c6 {[%clk 0:00:11.3]} 56... Rc7 {[%clk
0:00:05.6]} 57. Kd5 {[%clk 0:00:11.5]} 57... Ke7 {[%clk 0:00:03.5]} 58. Re4+
{[%clk 0:00:12]} 58... Kd8 {[%clk 0:00:03.5]} 59. Kd6 {[%clk 0:00:12.9]} 59...
Ra7 {[%clk 0:00:02.8]} 60. Rb4 {[%clk 0:00:08.7]} 60... Kc8 {[%clk 0:00:03]} 61.
Rb7 {[%clk 0:00:07.7]} 61... Ra3 {[%clk 0:00:01.5]} 62. Rxf7 {[%clk 0:00:07.6]}
62... Rd3+ {[%clk 0:00:02.2]} 63. Ke5 {[%clk 0:00:07.7]} 63... Rc3 {[%clk
0:00:02.5]} 64. Rf6 {[%clk 0:00:07.3]} 64... g5 {[%clk 0:00:01.8]} 65. hxg5
{[%clk 0:00:06.7]} 65... Rc2 {[%clk 0:00:02.7]} 66. Kd6 {[%clk 0:00:05.4]} 66...
Rd2+ {[%clk 0:00:02.8]} 67. Ke6 {[%clk 0:00:05.4]} 67... Rxg2 {[%clk 0:00:03.7]}
68. g6 {[%clk 0:00:05.6]} 68... h4 {[%clk 0:00:03.8]} 69. Kf7 {[%clk 0:00:05.5]}
69... h3 {[%clk 0:00:03.6]} 70. Rf5 {[%clk 0:00:06.1]} 70... h2 {[%clk
0:00:03.8]} 71. Rh5 {[%clk 0:00:06.6]} 71... Rg3 {[%clk 0:00:04.2]} 72. f4
{[%clk 0:00:06.1]} 72... Rf3 {[%clk 0:00:05.1]} 73. Rxh2 {[%clk 0:00:04.4]}
73... Rxf4+ {[%clk 0:00:05.7]} 74. Kg8 {[%clk 0:00:04.6]} 74... Kc7 {[%clk
0:00:05]} 75. Rd2 {[%clk 0:00:05]} 75... Kxc6 {[%clk 0:00:04.6]} 76. g7 {[%clk
0:00:05.5]} 76... Kc7 {[%clk 0:00:04]} 77. Kh7 {[%clk 0:00:05.6]} 77... Rh4+
{[%clk 0:00:04.6]} 78. Kg6 {[%clk 0:00:05.9]} 78... Rg4+ {[%clk 0:00:05.1]} 79.
Kf7 {[%clk 0:00:05.5]} 79... Rf4+ {[%clk 0:00:05.3]} 80. Kg8 {[%clk 0:00:06]}
80... Kc6 {[%clk 0:00:04.2]} 81. Rh2 {[%clk 0:00:05.8]} 81... Kd6 {[%clk
0:00:03.8]} 82. Kh7 {[%clk 0:00:06.3]} 82... Rf7 {[%clk 0:00:02.2]} 83. Kh8
{[%clk 0:00:06]} 83... Ke7 {[%clk 0:00:01.4]} 84. g8=Q {[%clk 0:00:05.6]} 1-0